bitfinex-derivatives/quotes_ETHF0:USTF0_20260113
["timestamp","ask_amount","ask_price","bid_price","bid_amount"]
[1768292534814,0.1416151,3130.4,3129.5,1.09055333]
[1768292535017,0.93358716,3130.3,3129.5,1.09055333]
[1768292535314,0.93358716,3130.2,3129.5,1.09055333]
[1768292535515,0.93358716,3130.1,3129.5,1.09055333]
[1768292535710,0.93358716,3130.0,3129.5,1.09055333]
[1768292535910,0.93358716,3129.9,3129.5,1.09055333]
[1768292536111,0.1416151,3130.4,3129.5,1.09055333]
[1768292536313,0.93359017,3130.3,3129.5,1.09055333]
[1768292536611,0.93359017,3130.2,3129.5,1.09055333]
[1768292536807,0.93359017,3130.1,3129.5,1.09055333]
[1768292537010,0.93359017,3130.0,3128.8,0.06894669]
[1768292537216,0.93359017,3129.9,3129.4,1.09055333]
[1768292537419,0.1416151,3130.4,3129.4,1.09055333]
[1768292537618,1.31482059,3130.3,3129.4,1.09055333]
[1768292537818,0.93356126,3130.2,3129.4,1.09055333]
[1768292538015,0.93356126,3130.1,3129.4,1.09055333]
[1768292538215,0.93356126,3130.0,3129.4,1.09055333]
[1768292538415,0.93356126,3129.9,3129.4,1.09055333]
[1768292538715,0.1416151,3130.4,3129.4,1.09055333]
[1768292538916,1.31479678,3130.3,3129.4,1.09055333]
[1768292539118,0.93354416,3130.2,3129.4,1.09055333]
[1768292539416,0.93354416,3130.1,3129.4,1.09055333]
[1768292539615,0.93354416,3130.0,3129.4,1.09055333]
[1768292539815,0.93354416,3129.9,3129.4,1.09055333]
[1768292540017,0.1416151,3130.4,3129.4,1.09055333]
[1768292540220,1.31477818,3130.3,3129.4,1.09055333]
[1768292540409,0.93353081,3130.2,3129.4,1.09055333]
[1768292540618,0.93353081,3130.1,3129.4,1.09055333]
[1768292540819,0.93353081,3130.0,3129.4,1.09055333]
[1768292541018,0.93353081,3129.9,3129.4,1.09055333]
[1768292541225,0.1416151,3130.4,3129.4,1.09055333]
[1768292541419,0.93351252,3130.3,3129.6,1.09055333]
[1768292541726,0.93351252,3130.2,3129.6,1.09055333]
[1768292541921,0.93351252,3130.1,3129.6,1.09055333]
[1768292542122,0.93351252,3130.0,3129.6,1.09055333]
[1768292542321,0.1416151,3130.4,3129.6,1.09055333]
[1768292542520,0.92915134,3130.3,3129.6,1.09055333]
[1768292542822,0.92915134,3130.2,3129.6,1.09055333]
[1768292543014,0.92915134,3130.1,3129.6,1.09055333]
[1768292543217,0.92915134,3130.0,3129.6,1.09055333]
[1768292543416,0.1416151,3130.4,3129.6,1.09055333]
[1768292543614,0.92482196,3130.3,3129.6,1.09055333]
[1768292543817,0.92482196,3130.2,3129.6,1.09055333]
[1768292544018,0.92482196,3130.1,3129.6,1.09055333]
[1768292544220,0.92482196,3130.0,3129.6,1.09055333]
[1768292544420,0.1416151,3130.4,3129.6,1.09055333]
[1768292544629,0.92481069,3130.3,3129.6,1.09055333]
[1768292544830,0.92481069,3130.2,3129.6,1.09055333]
[1768292545030,0.92481069,3130.1,3129.6,1.09055333]
[1768292545230,0.92481069,3130.0,3129.6,1.09055333]
[1768292545422,0.1416151,3130.4,3129.6,1.09055333]
[1768292545622,0.92480311,3130.3,3129.6,1.09055333]
[1768292545823,0.92480311,3130.2,3129.6,1.09055333]
[1768292546032,0.92480311,3130.1,3129.6,1.09055333]
[1768292546225,0.92480311,3130.0,3129.6,1.09055333]
[1768292546425,0.0032741,3130.5,3129.6,1.09055333]
[1768292546631,1.30600521,3130.4,3129.6,1.09055333]
[1768292546829,0.92479611,3130.3,3129.6,1.09055333]
[1768292547129,0.92479611,3130.2,3129.6,1.09055333]
[1768292547329,0.92479611,3130.1,3129.8,1.09026307]
[1768292547525,0.92479611,3130.0,3129.8,1.09026307]
[1768292547727,0.0032741,3130.5,3129.8,1.09026307]
[1768292547928,1.30599567,3130.4,3129.8,1.09026307]
[1768292548129,0.92478917,3130.3,3129.8,1.09026307]
[1768292548429,0.92478917,3130.2,3129.8,1.09026307]
[1768292548729,0.92478917,3130.1,3129.8,1.09026307]
[1768292548928,0.92478917,3130.0,3129.8,1.09026307]
[1768292549129,0.14393478,3130.5,3129.8,1.09026307]
[1768292549332,1.30603478,3130.4,3129.8,1.09026307]
[1768292549526,1.0654773,3130.3,3129.8,1.09026307]
[1768292549726,1.0654773,3130.2,3129.0,1.09026307]
[1768292549932,0.92481662,3130.1,3129.5,1.09026307]
[1768292550133,0.92481662,3130.0,3129.5,1.09026307]
[1768292550430,0.14066068,3130.2,3129.5,1.09026307]
[1768292550631,0.92386657,3130.1,3129.7,1.09026307]
[1768292550831,0.92386657,3130.0,3129.6,1.09026307]
[1768292551028,0.14066068,3130.3,3129.0,1.09026307]
[1768292551238,1.06452041,3130.2,3129.5,1.09026307]
[1768292551432,0.92385973,3130.1,3129.5,1.09026307]
[1768292551632,0.92385973,3130.0,3129.5,1.09026307]
[1768292551828,0.14066068,3130.2,3129.5,1.09026307]
[1768292552027,0.91991909,3130.1,3129.5,1.09026307]
[1768292552228,0.91991909,3130.0,3129.5,1.09026307]
[1768292552429,0.14066068,3130.2,3129.5,1.09026307]
[1768292552727,0.91991076,3130.1,3129.5,1.09026307]
[1768292552926,0.91991076,3130.0,3129.5,1.09026307]
[1768292553123,0.14066068,3130.2,3129.5,1.09026307]
[1768292553422,0.91991076,3130.1,3129.5,1.09026307]
[1768292553627,0.91991076,3130.0,3129.5,1.09026307]
[1768292553828,0.14066068,3130.2,3129.5,1.09026307]
[1768292554028,0.91990339,3130.1,3129.5,1.09026307]
[1768292554236,0.91990339,3130.0,3129.5,1.09026307]
[1768292554435,0.14066068,3130.2,3129.5,1.09026307]
[1768292554637,0.91989646,3130.1,3129.5,1.09026307]
[1768292554831,0.91989646,3130.0,3129.5,1.09026307]
[1768292555038,0.14066068,3130.2,3129.5,1.09026307]
[1768292555238,0.91989646,3130.1,3129.5,1.09026307]
[1768292555440,0.91989646,3130.0,3129.5,1.09026307]
[1768292555642,0.14066068,3130.2,3129.5,1.09026307]
[1768292555838,0.91989026,3130.1,3129.5,1.09026307]
[1768292556139,0.91989026,3130.0,3129.5,1.09026307]
[1768292556333,0.14066068,3130.2,3129.5,1.09026307]
[1768292556532,0.9198854,3130.1,3129.5,1.09026307]
[1768292556732,1.05454253,3130.0,3129.5,1.09026307]
[1768292556938,0.13465713,3130.0,3129.5,1.09026307]
[1768292558541,1.2249202,3129.9,3128.4,0.16477555]
[1768292558745,1.09026307,3129.7,3128.9,1.09026307]
[1768292559238,0.13465713,3129.8,3128.9,1.09026307]
[1768292559435,0.13465713,3129.8,3129.1,1.09026307]
[1768292562835,0.13465713,3129.8,3129.3,1.09026307]
[1768292563032,1.2249202,3130.2,3129.3,1.09026307]
[1768292563232,0.92171846,3130.1,3129.3,1.09026307]
[1768292563432,0.92171846,3130.0,3129.3,1.09026307]
[1768292563637,0.92171846,3129.9,3129.3,1.09026307]
[1768292563838,0.92171846,3129.8,3129.3,1.09026307]
[1768292564140,1.2249202,3130.2,3129.3,1.09026307]
[1768292564340,0.92166896,3130.1,3129.3,1.09026307]
[1768292564541,0.92166896,3130.0,3129.3,1.09026307]
[1768292564840,0.92166896,3129.9,3129.3,1.09026307]
[1768292565040,0.92166896,3129.8,3129.3,1.09026307]
[1768292565232,1.2249202,3130.2,3129.3,1.09026307]
[1768292565431,0.92159385,3130.1,3129.3,1.09026307]
[1768292565632,0.92159385,3130.0,3129.3,1.09026307]
[1768292565932,0.92159385,3129.9,3129.3,1.09026307]
[1768292566133,0.92159385,3129.8,3129.3,1.09026307]
[1768292566333,1.2249202,3130.2,3129.3,1.09026307]
[1768292566533,0.92156597,3130.1,3129.3,1.09026307]
[1768292566733,0.92156597,3130.0,3129.3,1.09026307]
[1768292566940,0.92156597,3129.9,3129.3,1.09026307]
[1768292567148,0.92156597,3129.8,3129.3,1.09026307]
[1768292567338,1.2249202,3130.2,3129.3,1.09026307]
[1768292567531,1.05622395,3130.1,3129.1,1.09026307]
[1768292567735,0.92156682,3130.0,3129.1,1.09026307]
[1768292567943,0.92156682,3129.9,3129.1,1.09026307]
[1768292568143,0.92156682,3129.8,3128.5,1.395]
[1768292568346,0.13465713,3129.9,3129.1,1.09026307]
[1768292568542,0.92152265,3129.8,3129.1,1.09026307]
[1768292568736,0.13465713,3129.9,3129.1,1.09026307]
[1768292568936,0.92152268,3129.8,3129.1,1.09026307]
[1768292569137,0.13465713,3129.9,3129.1,1.09026307]
[1768292569338,0.92152268,3129.8,3129.1,1.09026307]
[1768292569538,0.13465713,3129.9,3129.1,1.09026307]
[1768292569747,0.92148075,3129.8,3129.1,1.09026307]
[1768292570045,0.13465713,3129.9,3129.1,1.09026307]
[1768292570246,0.92148075,3129.8,3129.1,1.09026307]
[1768292570438,0.13465713,3129.9,3129.1,1.09026307]
[1768292570638,0.92144472,3129.8,3129.1,1.09026307]
[1768292570938,0.13465713,3129.9,3129.1,1.09026307]
[1768292571137,0.92144472,3129.8,3129.1,1.09026307]
[1768292571339,1.09026307,3130.2,3129.3,1.09026307]
[1768292571535,0.92141526,3130.1,3129.3,1.09026307]
[1768292571740,0.92141526,3130.0,3129.3,1.09026307]
[1768292571936,0.92141526,3129.9,3129.3,1.09026307]
[1768292572140,0.92141526,3129.8,3129.3,1.09026307]
[1768292572349,1.2249202,3130.2,3129.3,1.09026307]
[1768292572650,0.92141,3130.1,3129.3,1.09026307]
[1768292572842,0.92141,3130.0,3129.3,1.09026307]
[1768292573042,0.92141,3129.9,3129.1,1.09026307]
[1768292573242,0.92141,3129.8,3129.1,1.09026307]
[1768292573445,0.13465713,3130.1,3129.1,1.09026307]
[1768292573644,0.92141144,3130.0,3129.1,1.09026307]
[1768292573850,0.92141144,3129.9,3129.3,1.09026307]
[1768292574148,0.92141144,3129.8,3129.1,1.09026307]
[1768292574447,1.2249202,3130.1,3129.1,1.09026307]
[1768292574647,0.92142202,3130.0,3129.1,1.09026307]
[1768292574846,0.92142202,3129.9,3129.1,1.09026307]
[1768292575048,0.92142202,3129.8,3129.1,1.09026307]
[1768292575351,1.2249202,3130.1,3129.3,1.09026307]
[1768292575648,0.92143918,3130.0,3129.3,1.09026307]
[1768292575848,0.92143918,3129.9,3129.3,1.09026307]
[1768292576048,0.92143918,3129.8,3129.3,1.09026307]
[1768292576248,1.2249202,3130.1,3129.3,1.09026307]
[1768292576440,0.92146459,3130.0,3129.3,1.09026307]
[1768292576640,0.92146459,3129.9,3129.3,1.09026307]
[1768292576841,0.92146459,3129.8,3129.3,1.09026307]
[1768292577041,1.2249202,3130.1,3129.3,1.09026307]
[1768292577245,0.92146443,3130.0,3129.3,1.09026307]
[1768292577445,0.92146443,3129.9,3129.3,1.09026307]
[1768292577650,0.92146443,3129.8,3129.3,1.09026307]
[1768292577839,1.2249202,3130.1,3129.3,1.09026307]
[1768292578039,0.92149986,3130.0,3129.3,1.09026307]
[1768292578242,0.92149986,3129.9,3129.3,1.09026307]
[1768292578449,0.92149986,3129.8,3129.3,1.09026307]
[1768292578651,0.13793123,3130.5,3129.7,1.09026307]
[1768292578843,2.52737251,3130.4,3129.7,1.09026307]
[1768292579044,1.30245231,3130.3,3129.7,1.09026307]
[1768292579252,1.05616426,3130.2,3129.5,1.09026307]
[1768292579452,0.92150713,3130.1,3129.5,1.09026307]
[1768292580454,0.92150713,3130.1,3129.1,1.09026307]
[1768292580751,0.92150713,3130.1,3129.7,1.09026307]
[1768292582248,0.92150713,3130.1,3129.9,1.09026307]
[1768292582446,0.92150713,3130.1,3129.7,1.09026307]
[1768292582447,0.92150713,3130.0,3129.7,1.09026307]
[1768292582646,0.92150713,3129.9,3129.7,1.09026307]
[1768292582952,0.13465713,3130.4,3129.7,1.09026307]
[1768292583655,0.0032741,3130.5,3130.2,1.09026307]
[1768292584554,1.45965713,3131.2,3130.4,1.09026307]
[1768292584745,0.38075712,3131.1,3130.4,1.09026307]
[1768292584941,1.45965713,3131.2,3130.4,1.09026307]
[1768292585145,0.51527595,3131.1,3130.4,1.09026307]
[1768292585347,0.13739847,3131.1,3130.4,1.09026307]
[1768292590655,0.13739847,3131.1,3130.3,1.09026307]
[1768292590858,1.22478426,3131.0,3130.0,0.00479555]
[1768292591059,1.22478426,3130.8,3130.0,0.00479555]
[1768292593061,1.09026307,3130.6,3130.0,0.00479555]
[1768292593265,1.22478426,3130.8,3130.0,0.00479555]
[1768292593564,1.22478426,3130.8,3130.0,1.09505862]
[1768292599365,0.13452119,3130.8,3130.0,0.00479555]
[1768292599575,1.09026307,3130.7,3130.0,0.00479555]
[1768292601867,1.22478426,3130.8,3130.0,0.00479555]
[1768292602365,1.22478426,3130.8,3130.0,1.09505862]
[1768292605569,1.22478426,3130.8,3130.0,0.00479555]
[1768292606969,0.14254532,3130.7,3130.0,0.00479555]
[1768292611469,0.14254532,3130.7,3129.5,1.09016022]
[1768292612173,0.14254532,3130.5,3129.5,1.09016022]
[1768292612468,0.14254532,3130.5,3129.3,1.09016022]
[1768292614368,0.14254532,3130.5,3129.7,1.09016022]
[1768292614566,0.14426948,3131.0,3129.7,1.09016022]
[1768292614873,1.4394819,3130.9,3129.9,1.09016022]
[1768292615075,0.91411162,3130.8,3129.7,1.09016022]
[1768292615371,0.91411162,3130.7,3129.7,1.09016022]
[1768292615568,0.91411162,3130.6,3129.7,1.09016022]
[1768292615869,0.14426948,3130.9,3129.7,1.09016022]
[1768292616071,0.91408525,3130.8,3129.7,1.09016022]
[1768292616273,0.91408525,3130.7,3129.7,1.09016022]
[1768292616570,0.91408525,3130.6,3129.7,1.09016022]
[1768292616771,0.14426948,3130.9,3129.7,1.09016022]
[1768292617072,0.91406468,3130.8,3129.7,1.09016022]
[1768292617270,0.91406468,3130.7,3129.7,1.09016022]
[1768292617473,0.91406468,3130.6,3129.7,1.09016022]
[1768292617664,0.14426948,3130.9,3129.7,1.09016022]
[1768292617865,0.91404854,3130.8,3129.7,1.09016022]
[1768292618065,0.91404854,3130.7,3129.7,1.09016022]
[1768292618266,0.91404854,3130.6,3129.7,1.09016022]
[1768292618465,0.14426948,3130.9,3129.7,1.09016022]
[1768292618662,0.91403729,3130.8,3129.7,1.09016022]
[1768292618866,0.91403729,3130.7,3129.7,1.09016022]
[1768292619063,0.91403729,3130.6,3129.7,1.09016022]
[1768292619268,0.14426948,3130.9,3129.7,1.09016022]
[1768292619576,0.91403255,3130.8,3129.7,1.09016022]
[1768292619777,0.91403255,3130.7,3129.9,1.09016022]
[1768292619979,0.91403255,3130.6,3129.9,1.09016022]
[1768292620166,0.14426948,3130.9,3129.9,1.09016022]
[1768292620371,0.91403131,3130.8,3129.9,1.09016022]
[1768292620571,0.91403131,3130.7,3129.9,1.09016022]
[1768292620771,0.91403131,3130.6,3129.9,1.09016022]
[1768292620971,0.14426948,3130.9,3129.9,1.09016022]
[1768292621174,0.91403131,3130.8,3129.7,1.09016022]
[1768292621374,0.91403131,3130.7,3129.7,1.09016022]
[1768292621575,0.91403131,3130.6,3129.7,1.09016022]
[1768292621875,0.14426948,3130.8,3129.7,1.09016022]
[1768292622077,0.91403285,3130.7,3129.7,1.09016022]
[1768292622275,0.91403285,3130.6,3129.7,1.09016022]
[1768292622476,0.14426948,3130.8,3129.7,1.09016022]
[1768292622676,0.9140332,3130.7,3129.7,1.09016022]
[1768292622878,0.9140332,3130.6,3129.7,1.09016022]
[1768292623079,0.14426948,3130.8,3129.7,1.09016022]
[1768292623279,0.91403137,3130.7,3129.7,1.09016022]
[1768292623483,0.91403137,3130.6,3129.7,1.09016022]
[1768292623782,0.14426948,3130.8,3129.7,1.09016022]
[1768292623983,0.91403122,3130.7,3129.7,1.09016022]
[1768292624171,0.91403122,3130.6,3129.7,1.09016022]
[1768292624374,0.14426948,3130.8,3129.7,1.09016022]
[1768292624580,0.9140298,3130.7,3129.7,1.09016022]
[1768292624781,0.9140298,3130.6,3129.9,1.09016022]
[1768292624984,0.14426948,3130.8,3129.9,1.09016022]
[1768292625279,0.91402995,3130.7,3129.9,1.09016022]
[1768292625481,0.91402995,3130.6,3129.7,1.09016022]
[1768292625683,0.14426948,3130.8,3129.7,1.09016022]
[1768292625981,0.9140297,3130.7,3129.7,1.09016022]
[1768292626182,0.9140297,3130.6,3129.7,1.09016022]
[1768292626386,0.14426948,3130.8,3129.7,1.09016022]
[1768292626582,0.91403198,3130.7,3129.7,1.09016022]
[1768292626784,0.91403198,3130.6,3129.9,1.09016022]
[1768292626979,0.14426948,3130.8,3129.9,1.09016022]
[1768292627185,0.91403569,3130.7,3129.7,1.09016022]
[1768292627483,0.91403569,3130.6,3129.7,1.09016022]
[1768292627678,0.14426948,3130.8,3129.9,1.09016022]
[1768292627880,0.9140355,3130.7,3129.9,1.09016022]
[1768292628081,0.9140355,3130.6,3129.7,1.09016022]
[1768292628282,0.14426948,3130.8,3129.9,1.09016022]
[1768292628481,0.91404037,3130.7,3129.9,1.09016022]
[1768292628788,0.91404037,3130.6,3129.9,1.09016022]
[1768292628990,0.14426948,3130.8,3129.9,1.09016022]
[1768292629178,0.91404686,3130.7,3129.9,1.09016022]
[1768292629383,0.91404686,3130.6,3129.7,1.09016022]
[1768292629583,0.14426948,3130.8,3129.7,1.09016022]
[1768292629789,0.91404686,3130.7,3129.7,1.09016022]
[1768292629988,0.91404686,3130.6,3129.7,1.09016022]
[1768292630188,0.14426948,3130.8,3129.7,1.09016022]
[1768292630487,0.9140545,3130.7,3130.1,1.09016022]
[1768292630687,0.9140545,3130.6,3130.1,1.09016022]
[1768292630887,0.14426948,3130.8,3130.1,1.09016022]
[1768292631090,0.91405261,3130.7,3130.1,1.09016022]
[1768292631290,0.91405261,3130.6,3130.1,1.09016022]
[1768292631489,0.14426948,3130.8,3130.1,1.09016022]
[1768292631690,0.91406343,3130.7,3130.1,1.09016022]
[1768292631887,0.91406343,3130.6,3129.2,0.05671675]
[1768292632091,0.14426948,3130.8,3129.8,1.09016022]
[1768292632290,0.91407562,3130.7,3129.8,1.09016022]
[1768292632596,0.91407562,3130.6,3129.8,1.09016022]
[1768292632787,0.14426948,3130.8,3129.8,1.09016022]
[1768292633085,0.91407578,3130.7,3129.8,1.09016022]
[1768292633286,0.91407578,3130.6,3129.8,1.09016022]
[1768292633486,0.14426948,3130.8,3129.8,1.09016022]
[1768292633686,0.9140894,3130.7,3129.8,1.09016022]
[1768292633889,0.9140894,3130.6,3129.8,1.09016022]
[1768292634087,0.14426948,3130.8,3129.8,1.09016022]
[1768292634288,0.91410477,3130.7,3129.8,1.09016022]
[1768292634497,0.91410477,3130.6,3129.8,1.09016022]
[1768292634694,0.14426948,3130.8,3129.8,1.09016022]
[1768292634894,0.91410477,3130.7,3129.8,1.09016022]
[1768292635194,0.91410477,3130.6,3129.8,1.09016022]
[1768292635393,0.14426948,3130.8,3129.8,1.09016022]
[1768292635589,0.91412049,3130.7,3129.8,1.09016022]
[1768292635790,0.91412049,3130.6,3130.1,1.09016022]
[1768292636096,0.14426948,3130.8,3130.1,1.09016022]
[1768292636294,0.91410969,3130.7,3130.1,1.09016022]
[1768292636594,0.91410969,3130.6,3130.1,1.09016022]
[1768292637098,0.14426948,3130.8,3130.1,1.09016022]
[1768292637290,0.91410664,3130.7,3130.1,1.09016022]
[1768292637589,0.91410664,3130.6,3130.1,1.09016022]
[1768292637792,0.14426948,3130.8,3130.1,1.09016022]
[1768292637990,0.91410664,3130.7,3130.1,1.09016022]
[1768292638193,0.91410664,3130.6,3130.1,1.09016022]
[1768292638397,0.14426948,3130.8,3130.1,1.09016022]
[1768292638588,0.9141044,3130.7,3129.6,1.09016022]
[1768292638896,0.14426948,3130.8,3130.1,1.09016022]
[1768292639093,0.91410395,3130.7,3130.1,1.09016022]
[1768292639294,0.14426948,3130.8,3130.1,1.09016022]
[1768292639494,0.91409906,3130.7,3130.1,1.09016022]
[1768292639694,0.14426948,3130.8,3130.1,1.09016022]
[1768292639895,0.91409906,3130.7,3130.1,1.09016022]
[1768292640098,0.14426948,3130.8,3130.1,1.09016022]
[1768292640300,0.91430113,3130.7,3130.0,1.09016022]
[1768292640595,0.14426948,3130.8,3129.6,1.09016022]
[1768292640596,0.14426948,3130.8,3130.1,1.09016022]
[1768292640797,0.91428887,3130.7,3130.1,1.09016022]
[1768292640997,0.14426948,3130.8,3130.1,1.09016022]
[1768292641302,0.91430319,3130.7,3130.1,1.09016022]
[1768292641489,0.14426948,3130.8,3130.1,1.09016022]
[1768292641690,0.91421952,3130.7,3130.1,1.09016022]
[1768292641895,0.14426948,3130.8,3130.1,1.09016022]
[1768292642088,0.91421952,3130.7,3130.1,1.09016022]
[1768292642288,0.14426948,3130.8,3130.1,1.09016022]
[1768292642488,0.91416129,3130.7,3130.1,1.09016022]
[1768292642690,0.14426948,3130.8,3130.1,1.09016022]
[1768292642891,0.91416115,3130.7,3130.1,1.09016022]
[1768292643186,0.00287728,3131.1,3130.3,1.09016022]
[1768292643390,0.91408442,3131.0,3130.3,1.09016022]
[1768292643591,0.91408442,3130.9,3130.3,1.09016022]
[1768292643791,0.91408442,3130.8,3130.1,1.09016022]
[1768292643996,0.14426948,3131.0,3129.7,1.09016022]
[1768292644298,0.14426948,3130.8,3129.7,1.09016022]
[1768292646101,0.91397211,3130.7,3129.7,1.09016022]
[1768292646298,0.14426948,3130.8,3129.7,1.09016022]
[1768292646599,0.14426948,3130.8,3129.9,1.09016022]
[1768292649504,0.91394485,3130.7,3129.9,1.09016022]
[1768292649806,0.14426948,3130.8,3129.9,1.09016022]
[1768292650004,0.91394956,3130.7,3129.9,1.09016022]
[1768292650206,0.14426948,3130.8,3129.9,1.09016022]
[1768292650507,0.91395156,3130.7,3129.9,1.09016022]
[1768292650806,0.14426948,3130.8,3129.9,1.09016022]
[1768292650996,0.91394939,3130.7,3129.9,1.09016022]
[1768292651196,0.14426948,3130.8,3129.9,1.09016022]
[1768292651496,0.91395398,3130.7,3129.9,1.09016022]
[1768292651696,0.14426948,3130.8,3129.9,1.09016022]
[1768292651904,0.91394965,3130.7,3129.9,1.09016022]
[1768292652100,0.14426948,3130.8,3129.9,1.09016022]
[1768292652399,0.9139517,3130.7,3129.9,1.09016022]
[1768292652601,0.14426948,3130.8,3129.9,1.09016022]
[1768292652802,0.91395348,3130.7,3129.9,1.09016022]
[1768292653002,0.14426948,3130.8,3129.9,1.09016022]
[1768292653201,0.91395703,3130.7,3129.9,1.09016022]
[1768292653408,0.14426948,3130.8,3129.9,1.09016022]
[1768292653608,0.9139601,3130.7,3129.9,1.09016022]
[1768292653808,0.14426948,3130.8,3129.9,1.09016022]
[1768292654107,0.9139601,3130.7,3129.9,1.09016022]
[1768292654307,0.14426948,3130.8,3129.9,1.09016022]
[1768292660217,0.91409706,3130.7,3129.9,1.09016022]
[1768292660511,0.14426948,3130.8,3129.9,1.09016022]
[1768292660705,0.91409871,3130.7,3129.7,1.09016022]
[1768292660906,0.14426948,3130.8,3129.7,1.09016022]
[1768292661109,0.91409871,3130.7,3129.7,1.09016022]
[1768292661306,0.14426948,3130.8,3129.7,1.09016022]
[1768292661506,0.9141346,3130.7,3129.9,1.09016022]
[1768292661708,0.14426948,3130.8,3129.9,1.09016022]
[1768292661909,0.9141346,3130.7,3129.9,1.09016022]
[1768292662208,0.14426948,3130.8,3129.9,1.09016022]
[1768292662407,0.9141758,3130.7,3129.9,1.09016022]
[1768292662708,0.14426948,3130.8,3129.9,1.09016022]
[1768292662909,0.91417578,3130.7,3129.9,1.09016022]
[1768292663108,0.14426948,3130.8,3129.9,1.09016022]
[1768292663314,0.91421982,3130.7,3129.7,1.09016022]
[1768292663514,0.14426948,3130.8,3129.9,1.09016022]
[1768292663815,0.91422702,3130.7,3129.9,1.09016022]
[1768292664010,0.14426948,3130.8,3129.1,0.21670741]
[1768292664317,1.06021853,3130.7,3129.6,1.09016022]
[1768292664507,0.91428815,3130.6,3129.6,1.09016022]
[1768292664816,0.14593038,3130.7,3129.6,1.09016022]
[1768292665015,0.91428061,3130.6,3129.6,1.09016022]
[1768292665313,0.14593038,3130.7,3129.6,1.09016022]
[1768292665509,0.9143359,3130.6,3129.6,1.09016022]
[1768292665713,0.14593038,3130.7,3129.6,1.09016022]
[1768292666014,0.91433589,3130.6,3129.6,1.09016022]
[1768292666214,0.14593038,3130.7,3129.6,1.09016022]
[1768292666412,0.91433473,3130.6,3129.6,1.09016022]
[1768292666713,0.14593038,3130.7,3129.6,1.09016022]
[1768292666913,0.91433473,3130.6,3129.6,1.09016022]
[1768292667118,0.14593038,3130.7,3129.6,1.09016022]
[1768292667306,0.91434725,3130.6,3129.6,1.09016022]
[1768292667507,0.14593038,3130.7,3129.6,1.09016022]
[1768292667709,0.91433394,3130.6,3129.6,1.09016022]
[1768292667909,0.14593038,3130.7,3129.6,1.09016022]
[1768292668112,0.91433424,3130.6,3129.6,1.09016022]
[1768292668308,0.14593038,3130.7,3129.6,1.09016022]
[1768292668514,0.91433188,3130.6,3129.6,1.09016022]
[1768292668717,0.14593038,3130.7,3129.6,1.09016022]
[1768292669016,0.91433188,3130.6,3129.6,1.09016022]
[1768292669215,0.14593038,3130.7,3129.6,1.09016022]
[1768292669418,0.91432853,3130.6,3130.0,1.09015287]
[1768292669717,0.14593038,3130.7,3130.0,1.09015287]
[1768292669917,0.91432872,3130.6,3130.0,1.09015287]
[1768292670116,0.14593038,3130.7,3130.0,1.09015287]
[1768292670417,0.91390733,3130.6,3130.0,1.09015287]
[1768292670717,0.14593038,3130.7,3130.0,1.09015287]
[1768292671017,0.91389567,3130.6,3130.0,1.09015287]
[1768292671218,0.14593038,3130.7,3130.0,1.09015287]
[1768292671413,0.91388356,3130.6,3130.0,1.09015287]
[1768292671715,0.14593038,3130.7,3130.0,1.09015287]
[1768292671914,0.91390902,3130.6,3130.0,1.09015287]
[1768292672116,0.14593038,3130.7,3130.0,1.09015287]
[1768292672311,0.91389418,3130.6,3130.0,1.09015287]
[1768292672515,0.14593038,3130.7,3130.0,1.09015287]
[1768292672717,0.91387849,3130.6,3130.0,1.09015287]
[1768292673017,0.14593038,3130.7,3130.0,1.09015287]
[1768292673216,0.91387849,3130.6,3130.0,1.09015287]
[1768292673413,0.14593038,3130.7,3130.0,1.09015287]
[1768292673613,0.91386335,3130.6,3130.0,1.09015287]
[1768292673809,0.14593038,3130.7,3129.3,1.386]
[1768292674013,0.91386357,3130.6,3129.9,1.09015287]
[1768292674220,0.14593038,3130.7,3129.9,1.09015287]
[1768292674413,0.91385958,3130.6,3129.8,1.09015287]
[1768292674614,0.14593038,3130.7,3129.8,1.09015287]
[1768292674912,0.91386776,3130.6,3129.8,1.09015287]
[1768292675109,0.14593038,3130.7,3129.8,1.09015287]
[1768292675311,0.91386775,3130.6,3129.8,1.09015287]
[1768292675611,0.14593038,3130.7,3129.8,1.09015287]
[1768292675910,0.9138561,3130.6,3129.8,1.09015287]
[1768292676111,0.14593038,3130.7,3129.8,1.09015287]
[1768292676311,0.91385598,3130.6,3129.8,1.09015287]
[1768292676512,0.14593038,3130.7,3129.8,1.09015287]
[1768292676712,0.91383401,3130.6,3129.8,1.09015287]
[1768292676913,0.14593038,3130.7,3129.8,1.09015287]
[1768292677112,0.91383347,3130.6,3129.8,1.09015287]
[1768292677316,0.14593038,3130.7,3129.8,1.09015287]
[1768292677517,0.91382074,3130.6,3129.8,1.09015287]
[1768292677717,0.14593038,3130.7,3129.8,1.09015287]
[1768292677922,0.91382074,3130.6,3129.8,1.09015287]
[1768292678122,0.14593038,3130.7,3129.8,1.09015287]
[1768292678422,0.91381234,3130.6,3129.8,1.09015287]
[1768292678623,0.91381234,3130.6,3129.6,1.09015287]
[1768292678624,0.14593038,3130.7,3130.0,1.09015287]
[1768292678818,0.91381204,3130.6,3130.0,1.09015287]
[1768292679014,0.14593038,3130.7,3130.0,1.09015287]
[1768292679211,0.91380131,3130.6,3130.0,1.09015287]
[1768292679414,0.14593038,3130.7,3130.0,1.09015287]
[1768292679614,0.91380534,3130.6,3130.0,1.09015287]
[1768292679818,0.14593038,3130.7,3130.0,1.09015287]
[1768292680011,0.91380533,3130.6,3129.9,1.09015287]
[1768292680217,1.09015287,3130.4,3129.6,1.09015287]
[1768292680424,1.23135368,3130.5,3129.6,1.09015287]
[1768292680722,0.14120081,3130.5,3129.8,1.09015287]
[1768292690924,0.14120081,3130.5,3129.1,0.15994]
[1768292691128,1.23135368,3130.5,3129.7,1.09015287]
[1768292691337,0.14120081,3130.5,3129.7,1.09015287]
[1768292699743,0.14120081,3130.5,3129.1,0.15994]
[1768292699949,1.09015287,3130.4,3129.6,1.09015287]
[1768292700546,1.09015287,3130.4,3129.1,0.15994]
[1768292700741,1.09015287,3130.0,3128.8,4.02018935]
[1768292700947,1.09015287,3130.0,3129.1,1.09015287]
[1768292701145,1.09015287,3130.0,3129.3,1.09015287]
[1768292702242,1.09015287,3130.2,3129.3,1.09015287]
[1768292704847,0.14120081,3130.4,3129.0,1.09015287]
[1768292705052,1.22852562,3130.2,3129.0,1.09015287]
[1768292705250,1.22852562,3130.2,3129.3,1.09015287]
[1768292705750,1.09015287,3130.0,3129.2,1.09015287]
[1768292707343,0.13837275,3130.2,3129.2,1.09015287]
[1768292707543,2.00455707,3130.1,3129.2,1.09015287]
[1768292707750,1.09015287,3130.1,3129.2,1.09015287]
[1768292708049,1.09015287,3130.1,3129.4,1.09015287]
[1768292708446,0.13837275,3130.8,3129.8,1.09015287]
[1768292708654,2.52325222,3130.7,3129.8,1.09015287]
[1768292708952,1.2947266,3130.6,3129.8,1.09015287]
[1768292709152,0.91428697,3130.5,3129.8,1.09015287]
[1768292709347,0.91428697,3130.4,3129.8,1.09015287]
[1768292709552,0.91428697,3130.3,3129.8,1.09015287]
[1768292709749,0.91428697,3130.2,3129.8,1.09015287]
[1768292709950,7.22852562,3130.7,3129.8,1.09015287]
[1768292710149,7.22852562,3130.7,3130.0,1.09015287]